fUSD/lending_fUSD_20251115
["ID","MTS","AMOUNT","RATE_DAILY","PERIOD"]
[394066640,1763242248317,-294.03748631,0.00033092,15]
[394066641,1763242248326,-1479.43003895,0.0003311,2]
[394066642,1763242248336,-320.56766368,0.0003311,2]
[394066643,1763242248348,-536.76285641,0.00033112,5]
[394066644,1763242248357,-799.45,0.00033165,2]
[394066645,1763242248366,-223.859606,0.000332,31]
[394066646,1763242248376,-171.004162,0.000332,31]
[394066647,1763242248386,-223.859606,0.000332,31]
[394066648,1763242248395,-223.859606,0.000332,31]
[394066649,1763242248404,-223.859606,0.000332,31]
[394066650,1763242248413,-151.0,0.000332,31]
[394066651,1763242248423,-151.0,0.000332,31]
[394066652,1763242248432,-263.873412,0.000332,31]
[394066653,1763242248441,-263.873412,0.000332,31]
[394066654,1763242248450,-151.0,0.000332,31]
[394066655,1763242248459,-263.873412,0.000332,31]
[394066656,1763242248468,-151.0,0.000332,31]
[394066657,1763242248478,-151.0,0.000332,31]
[394066658,1763242248488,-151.0,0.000332,31]
[394066659,1763242248498,-263.873412,0.000332,31]
[394066660,1763242248508,-151.0,0.000332,31]
[394066661,1763242248524,-151.0,0.000332,31]
[394066662,1763242248533,-151.0,0.000332,31]
[394066663,1763242248543,-220.72302,0.000332,31]
[394066664,1763242248552,-377.911698,0.000332,31]
[394066665,1763242248561,-151.0,0.000332,31]
[394066666,1763242248571,-151.0,0.000332,31]
[394066667,1763242248580,-151.0,0.000332,31]
[394066668,1763242248590,-220.72302,0.000332,31]
[394066669,1763242248599,-377.911698,0.000332,31]
[394066670,1763242248608,-312.994165,0.000332,31]
[394066671,1763242248617,-151.0,0.000332,31]
[394066672,1763242248626,-175.0,0.00033226,30]
[394066673,1763242248635,-151.0,0.000335,31]
[394066674,1763242248644,-151.0,0.000335,31]
[394066675,1763242248654,-151.0,0.000335,31]
[394066676,1763242248663,-151.0,0.000335,31]
[394066677,1763242248673,-162.989975,0.000335,10]
[394066678,1763242248682,-162.989975,0.000335,10]
[394066679,1763242248691,-162.989975,0.000335,10]
[394066680,1763242248700,-162.989975,0.000335,10]
[394066681,1763242248708,-151.0,0.000335,31]
[394066682,1763242248717,-151.0,0.000335,31]
[394066683,1763242248729,-151.0,0.000335,31]
[394066684,1763242248738,-151.0,0.000335,31]
[394066685,1763242248748,-151.0,0.000335,31]
[394066686,1763242248757,-151.0,0.000335,31]
[394066687,1763242248766,-151.0,0.000335,31]
[394066688,1763242248775,-151.0,0.000335,31]
[394066689,1763242248785,-151.0,0.000335,31]
[394066690,1763242248794,-151.0,0.000335,31]
[394066691,1763242248806,-3497.0,0.00033722,2]
[394066692,1763242248820,-5518.0,0.000339,3]
[394066693,1763242248829,-396.645407,0.00034,31]
[394066694,1763242248838,-151.0,0.00034,31]
[394066695,1763242248847,-396.645407,0.00034,31]
[394066696,1763242248858,-151.0,0.00034,31]
[394066697,1763242248867,-396.645407,0.00034,31]
[394066698,1763242248876,-396.645407,0.00034,31]
[394066699,1763242248886,-151.0,0.00034,31]
[394066700,1763242248895,-151.0,0.00034,31]
[394066701,1763242248905,-151.0,0.00034,31]
[394066702,1763242248915,-151.0,0.00034,31]
[394066703,1763242248924,-161.445309,0.00034,31]
[394066704,1763242248933,-151.0,0.00034,31]
[394066705,1763242248943,-151.0,0.00034,31]
[394066706,1763242248952,-163.102772,0.00034,31]
[394066707,1763242249074,-151.0,0.00034,31]
[394066708,1763242249083,-167.083598,0.00034,31]
[394066709,1763242249093,-236.028036,0.00034,31]
[394066710,1763242249102,-151.0,0.00034,31]
[394066711,1763242249111,-151.0,0.00034,31]
[394066712,1763242249120,-151.0,0.00034,31]
[394066713,1763242249130,-151.0,0.00034,31]
[394066714,1763242249139,-151.0,0.00034,31]
[394066715,1763242249149,-246.593694,0.00034,31]
[394066716,1763242249158,-246.593694,0.00034,31]
[394066717,1763242249167,-246.593694,0.00034,31]
[394066718,1763242249176,-151.0,0.00034,31]
[394066719,1763242249185,-246.593694,0.00034,31]
[394066720,1763242249195,-151.0,0.00034,31]
[394066721,1763242249205,-151.0,0.00034,31]
[394066722,1763242249214,-151.0,0.00034,31]
[394066723,1763242249224,-151.0,0.00034,31]
[394066724,1763242249235,-151.0,0.00034,31]
[394066725,1763242249244,-151.0,0.00034,31]
[394066726,1763242249254,-184.778557,0.00034,31]
[394066727,1763242249263,-151.0,0.00034,31]
[394066728,1763242249273,-151.0,0.00034,31]
[394066729,1763242249282,-151.0,0.00034,31]
[394066730,1763242249291,-151.0,0.00034,31]
[394066731,1763242249301,-151.0,0.00034,31]
[394066732,1763242249310,-151.0,0.00034,31]
[394066733,1763242249320,-151.0,0.00034,31]
[394066734,1763242249329,-150.0,0.00034044,37]
[394066735,1763242249339,-2059.18,0.000341,2]
[394066736,1763242249349,-151.0,0.000342,31]
[394066737,1763242249358,-151.0,0.000342,31]
[394066738,1763242249367,-163.763305,0.000342,31]
[394066739,1763242249376,-160.971258,0.000342,31]
[394066740,1763242249386,-151.0,0.000342,31]
[394066741,1763242249395,-151.0,0.000342,31]
[394066742,1763242249405,-151.0,0.000342,31]
[394066743,1763242249414,-151.0,0.000342,31]
[394066744,1763242249424,-151.0,0.000342,31]
[394066745,1763242249433,-151.0,0.000342,31]
[394066746,1763242249442,-151.0,0.000342,31]
[394066747,1763242249452,-151.0,0.000342,31]
[394066748,1763242249462,-151.0,0.000342,31]
[394066749,1763242249472,-157.447538,0.000342,30]
[394066750,1763242249482,-151.0,0.000342,31]
[394066751,1763242249492,-151.0,0.000342,31]
[394066752,1763242249501,-200.17065,0.000342,31]
[394066753,1763242249511,-151.0,0.000342,31]
[394066754,1763242249521,-151.0,0.000342,31]
[394066755,1763242249530,-200.17065,0.000342,31]
[394066756,1763242249539,-151.0,0.000342,31]
[394066757,1763242249548,-151.0,0.000342,31]
[394066758,1763242249558,-200.17065,0.000342,31]
[394066759,1763242249567,-151.0,0.000342,31]
[394066760,1763242249576,-200.17065,0.000342,31]
[394066761,1763242249585,-151.0,0.000342,31]
[394066762,1763242249594,-151.0,0.000342,31]
[394066763,1763242249603,-151.0,0.000342,31]
[394066764,1763242249613,-301.738638,0.000342,31]
[394066765,1763242249623,-326.765039,0.000342,31]
[394066766,1763242249641,-326.765039,0.000342,31]
[394066767,1763242249650,-326.765039,0.000342,31]
[394066768,1763242249659,-326.765039,0.000342,31]
[394066769,1763242249668,-154.51187669,0.00034232,2]
[394066770,1763242249678,-150.0,0.00034243,7]
[394066771,1763242249687,-5000.0,0.00034321,2]
[394066772,1763242249696,-821.0,0.00034438,2]
[394066773,1763242249705,-1598.0,0.00034438,2]
[394066774,1763242249714,-793.0,0.00034438,2]
[394066775,1763242249722,-1275.0,0.00034438,2]
[394066776,1763242249732,-1190.0,0.00034438,2]
[394066777,1763242249742,-907.0,0.00034438,2]
[394066778,1763242249752,-608.0,0.00034438,2]
[394066779,1763242249761,-3170.0,0.00034438,2]
[394066780,1763242249770,-151.0,0.000345,31]
[394066781,1763242249780,-154.259794,0.000345,31]
[394066782,1763242249789,-151.0,0.000345,31]
[394066783,1763242249799,-151.0,0.000345,31]
[394066784,1763242249808,-151.0,0.000345,31]
[394066785,1763242249821,-151.0,0.000345,31]
[394066786,1763242249830,-312.120822,0.000345,31]
[394066787,1763242249840,-312.120822,0.000345,31]
[394066788,1763242249850,-312.120822,0.000345,31]
[394066789,1763242249860,-312.120822,0.000345,31]
[394066790,1763242249869,-151.0,0.000345,31]
[394066791,1763242249878,-440.834705,0.000345,31]
[394066792,1763242249889,-440.834705,0.000345,31]
[394066793,1763242249898,-440.834705,0.000345,31]
[394066794,1763242249908,-151.0,0.000345,31]
[394066795,1763242249917,-440.834705,0.000345,31]
[394066796,1763242249926,-151.0,0.000345,31]
[394066797,1763242249936,-151.0,0.000345,31]
[394066798,1763242249946,-151.0,0.000345,31]
[394066799,1763242249955,-531.075131,0.000345,31]
[394066800,1763242249965,-531.075131,0.000345,31]
[394066801,1763242249975,-531.075131,0.000345,31]
[394066802,1763242249985,-531.075131,0.000345,31]
[394066803,1763242249998,-151.0,0.000345,31]
[394066804,1763242250014,-153.248007,0.000345,31]
[394066805,1763242250024,-151.0,0.000345,31]
[394066806,1763242250034,-150.62681378,0.000345,120]
[394066807,1763242250044,-311.1,0.00034592,30]
[394066808,1763242250054,-167.01,0.000347,14]
[394066809,1763242250063,-151.0,0.000347,31]
[394066810,1763242250072,-151.0,0.000347,31]
[394066811,1763242250081,-151.0,0.000347,31]
[394066812,1763242250090,-235.050797,0.000347,31]
[394066813,1763242250099,-154.915387,0.000347,31]
[394066814,1763242250108,-151.0,0.000347,31]
[394066815,1763242250120,-151.0,0.000347,31]
[394066816,1763242250129,-235.050797,0.000347,31]
[394066817,1763242250138,-151.0,0.000347,31]
[394066818,1763242250148,-235.050797,0.000347,31]
[394066819,1763242250157,-151.0,0.000347,31]
[394066820,1763242250166,-235.050797,0.000347,31]
[394066821,1763242250175,-224.439472,0.000347,31]
[394066822,1763242250184,-151.0,0.000347,31]
[394066823,1763242250193,-151.0,0.000347,31]
[394066824,1763242250202,-151.0,0.000347,31]
[394066825,1763242250211,-151.0,0.000347,31]
[394066826,1763242250220,-151.0,0.000347,31]
[394066827,1763242250230,-177.06,0.000347,30]
[394066828,1763242250239,-158.018492,0.000347,31]
[394066829,1763242250248,-151.0,0.00034812,31]
[394066830,1763242250258,-151.0,0.00034812,31]
[394066831,1763242250268,-500.997914,0.00034812,31]
[394066832,1763242250277,-500.997914,0.00034812,31]
[394066833,1763242250286,-500.997914,0.00034812,31]
[394066834,1763242250295,-500.997914,0.00034812,31]
[394066835,1763242250305,-188.737272,0.00034812,31]
[394066836,1763242250315,-170.31756,0.00034812,31]
[394066837,1763242250324,-188.737272,0.00034812,31]
[394066838,1763242250334,-170.31756,0.00034812,31]
[394066839,1763242250344,-188.737272,0.00034812,31]
[394066840,1763242250353,-170.31756,0.00034812,31]
[394066841,1763242250363,-188.737272,0.00034812,31]
[394066842,1763242250373,-151.0,0.00034812,31]
[394066843,1763242250382,-170.31756,0.00034812,31]
[394066844,1763242250391,-151.0,0.00034812,31]
[394066845,1763242250401,-184.739565,0.00034812,31]
[394066846,1763242250411,-151.0,0.00034812,31]
[394066847,1763242250419,-151.0,0.00034812,31]
[394066848,1763242250428,-151.0,0.00034812,31]
[394066849,1763242250437,-151.0,0.00034812,31]
[394066850,1763242250447,-246.661876,0.00034812,31]
[394066851,1763242250456,-855.103751,0.00034812,30]
[394066852,1763242250466,-473.7554,0.00034812,31]
[394066853,1763242250475,-855.103751,0.00034812,30]
[394066854,1763242250485,-473.7554,0.00034812,31]
[394066855,1763242250495,-855.103751,0.00034812,30]
[394066856,1763242250504,-473.7554,0.00034812,31]
[394066857,1763242250513,-855.103751,0.00034812,30]
[394066858,1763242250523,-473.7554,0.00034812,31]
[394066859,1763242250533,-151.0,0.00034812,31]
[394066860,1763242250542,-151.0,0.00034812,31]
[394066861,1763242250551,-151.0,0.00034812,31]
[394066862,1763242250560,-208.970473,0.00034812,31]
[394066863,1763242250569,-1348.898314,0.00034812,28]
[394066864,1763242250579,-1348.898314,0.00034812,28]
[394066865,1763242250588,-1348.898314,0.00034812,28]
[394066866,1763242250597,-1348.898314,0.00034812,28]
[394066867,1763242250606,-151.0,0.00034812,31]
[394066868,1763242250616,-163.451954,0.00034812,31]
[394066869,1763242250625,-163.451954,0.00034812,31]
[394066870,1763242250635,-163.451954,0.00034812,31]
[394066871,1763242250644,-151.0,0.00034812,31]
[394066872,1763242250654,-163.451954,0.00034812,31]
[394066873,1763242250769,-201.94908,0.00034812,31]
[394066874,1763242250779,-151.0,0.00034812,31]
[394066875,1763242250788,-5518.0,0.000349,5]
[394066876,1763242250798,-215.10664739,0.00034921,2]
[394066877,1763242250806,-1000.0,0.00035,15]
[394066878,1763242250820,-1000.0,0.00035,15]
[394066879,1763242250829,-1000.0,0.00035,15]
[394066880,1763242250838,-1000.0,0.00035,15]
[394066881,1763242250847,-1000.0,0.00035,9]
[394066882,1763242250857,-904.0,0.00035092,3]
[394066883,1763242250866,-215.10664739,0.00035292,2]
[394066884,1763242250875,-215.10664739,0.0003538,2]
[394066885,1763242250884,-1567.61,0.00035423,30]
[394066886,1763242250893,-773.62,0.00035616,2]
[394066887,1763242250903,-215.10664739,0.00035771,2]
[394066888,1763242250913,-17431.60007936,0.00035842,2]
[394066889,1763242250923,-294.03748631,0.00035842,15]
[394066890,1763242250931,-1479.43003895,0.00035853,2]
[394066891,1763242250940,-531.0,0.0003589,30]
[394066892,1763242250949,-209.1860858,0.00035993,120]
[394066893,1763242250958,-531.0,0.00036,30]
[394066894,1763242250967,-177.06,0.00036,30]
[394066895,1763242250976,-240.00925603,0.00036,3]
[394066896,1763242250990,-215.10664739,0.00036008,2]
[394066897,1763242250999,-167.01,0.000361,14]
[394066898,1763242251008,-531.0,0.00036164,30]
[394066899,1763242251018,-311.1,0.00036245,60]
[394066900,1763242251027,-284.545379,0.0003628,31]
[394066901,1763242251036,-151.0,0.0003628,31]
[394066902,1763242251045,-151.0,0.0003628,31]
[394066903,1763242251054,-151.0,0.0003628,31]
[394066904,1763242251063,-262.578297,0.0003628,31]
[394066905,1763242251072,-151.0,0.0003628,31]
[394066906,1763242251081,-151.0,0.0003628,31]
[394066907,1763242251091,-151.0,0.0003628,31]
[394066908,1763242251100,-151.0,0.0003628,31]
[394066909,1763242251109,-151.0,0.0003628,31]
[394066910,1763242251119,-151.0,0.0003628,31]
[394066911,1763242251128,-151.0,0.0003628,31]
[394066912,1763242251137,-151.0,0.0003628,31]
[394066913,1763242251146,-200.17065,0.0003628,31]
[394066914,1763242251155,-151.0,0.0003628,31]
[394066915,1763242251164,-151.0,0.0003628,31]
[394066916,1763242251173,-200.17065,0.0003628,31]
[394066917,1763242251182,-151.0,0.0003628,31]
[394066918,1763242251191,-151.0,0.0003628,31]
[394066919,1763242251200,-200.17065,0.0003628,31]
[394066920,1763242251209,-151.0,0.0003628,31]
[394066921,1763242251219,-200.17065,0.0003628,31]
[394066922,1763242251228,-151.0,0.0003628,31]
[394066923,1763242251238,-195.560036,0.0003628,31]
[394066924,1763242251247,-151.0,0.0003628,31]
[394066925,1763242251256,-326.765039,0.0003628,31]
[394066926,1763242251266,-326.765039,0.0003628,31]
[394066927,1763242251275,-326.765039,0.0003628,31]
[394066928,1763242251283,-326.765039,0.0003628,31]
[394066929,1763242251293,-396.645407,0.0003628,31]
[394066930,1763242251302,-151.0,0.0003628,31]
[394066931,1763242251311,-396.645407,0.0003628,31]
[394066932,1763242251320,-193.877394,0.0003628,31]
[394066933,1763242251330,-396.645407,0.0003628,31]
[394066934,1763242251340,-396.645407,0.0003628,31]
[394066935,1763242251349,-151.0,0.0003628,31]
[394066936,1763242251359,-151.0,0.0003628,31]
[394066937,1763242251368,-151.0,0.0003628,31]
[394066938,1763242251377,-151.0,0.0003628,31]
[394066939,1763242251386,-220.340805,0.0003628,31]
[394066940,1763242251395,-151.0,0.0003628,31]
[394066941,1763242251404,-151.0,0.0003628,31]
[394066942,1763242251413,-151.0,0.0003628,31]
[394066943,1763242251422,-164.301287,0.0003628,31]
[394066944,1763242251431,-200.992172,0.0003628,31]
[394066945,1763242251440,-151.0,0.0003628,31]
[394066946,1763242251450,-152.83441,0.0003628,31]
[394066947,1763242251459,-246.593694,0.0003628,31]
[394066948,1763242251468,-246.593694,0.0003628,31]
[394066949,1763242251477,-246.593694,0.0003628,31]
[394066950,1763242251486,-151.0,0.0003628,31]
[394066951,1763242251499,-246.593694,0.0003628,31]
[394066952,1763242251518,-151.0,0.0003628,31]
[394066953,1763242251535,-151.0,0.0003628,31]
[394066954,1763242251553,-151.0,0.0003628,31]
[394066955,1763242251571,-151.0,0.0003628,31]
[394066956,1763242251586,-151.0,0.0003628,31]
[394066957,1763242251604,-151.0,0.0003628,31]
[394066958,1763242251623,-151.0,0.0003628,31]
[394066959,1763242251642,-151.0,0.0003628,31]
[394066960,1763242251660,-151.0,0.0003628,31]
[394066961,1763242251678,-151.0,0.0003628,31]
[394066962,1763242251695,-151.0,0.0003628,31]
[394066963,1763242251709,-159.622131,0.0003628,31]
[394066964,1763242251727,-151.0,0.0003628,31]
[394066965,1763242251743,-215.10664739,0.00036287,2]
[394066966,1763242251761,-500.0,0.00036289,2]
[394066967,1763242251773,-3006.90779574,0.00036289,2]
[394066968,1763242251787,-500.0,0.00036299,2]
[394066969,1763242251802,-531.0,0.00036438,30]
[394066970,1763242251818,-215.10664739,0.00036621,2]
[394066971,1763242251832,-237.04,0.00036625,2]
[394066972,1763242251847,-531.0,0.00036712,30]
[394066973,1763242251863,-152.0,0.00036794,3]
[394066974,1763242251877,-504.28621153,0.00036831,30]
[394066975,1763242251892,-151.0,0.00036886,31]
[394066976,1763242251907,-151.0,0.00036886,31]
[394066977,1763242251921,-500.997914,0.00036886,31]
[394066978,1763242251936,-500.997914,0.00036886,31]
[394066979,1763242251950,-500.997914,0.00036886,31]
[394066980,1763242251968,-500.99792,0.00036886,31]
[394066981,1763242251983,-188.737272,0.00036886,31]
[394066982,1763242251997,-170.31756,0.00036886,31]
[394066983,1763242252010,-188.737272,0.00036886,31]
[394066984,1763242252025,-170.31756,0.00036886,31]
[394066985,1763242252039,-188.737272,0.00036886,31]
[394066986,1763242252053,-170.31756,0.00036886,31]
[394066987,1763242252068,-188.737272,0.00036886,31]
[394066988,1763242252082,-151.0,0.00036886,31]
[394066989,1763242252096,-170.317563,0.00036886,31]
[394066990,1763242252111,-151.0,0.00036886,31]
[394066991,1763242252126,-151.0,0.00036886,31]
[394066992,1763242252139,-151.0,0.00036886,31]
[394066993,1763242252153,-151.0,0.00036886,31]
[394066994,1763242252168,-151.0,0.00036886,31]
[394066995,1763242252182,-855.103751,0.00036886,30]
[394066996,1763242252197,-473.7554,0.00036886,31]
[394066997,1763242252211,-855.103751,0.00036886,30]
[394066998,1763242252225,-473.7554,0.00036886,31]
[394066999,1763242252240,-473.7554,0.00036886,31]
[394067000,1763242252254,-855.103751,0.00036886,30]
[394067001,1763242252268,-855.103743,0.00036886,30]
[394067002,1763242252283,-473.755399,0.00036886,31]
[394067003,1763242252296,-151.0,0.00036886,31]
[394067004,1763242252311,-151.0,0.00036886,31]
[394067005,1763242252325,-151.0,0.00036886,31]
[394067006,1763242252339,-1348.898314,0.00036886,28]
[394067007,1763242252353,-1348.898314,0.00036886,28]
[394067008,1763242252367,-1348.898314,0.00036886,28]
[394067009,1763242252381,-1348.898306,0.00036886,28]
[394067010,1763242252395,-181.954097,0.00036886,31]
[394067011,1763242252408,-163.451954,0.00036886,31]
[394067012,1763242252422,-163.451954,0.00036886,31]
[394067013,1763242252436,-163.451954,0.00036886,31]
[394067014,1763242252449,-151.0,0.00036886,31]
[394067015,1763242252463,-163.451947,0.00036886,31]
[394067016,1763242252478,-151.0,0.00036886,31]
[394067017,1763242252493,-430.14,0.00036886,2]
[394067018,1763242252506,-9827.2278,0.00036886,2]
[394067019,1763242252520,-215.10664739,0.00036962,2]
[394067020,1763242252534,-151.0,0.00036986,31]
[394067021,1763242252548,-151.0,0.00036986,31]
[394067022,1763242252562,-151.0,0.00036986,31]
[394067023,1763242252577,-151.0,0.00036986,31]
[394067024,1763242252591,-156.481542,0.00036986,31]
[394067025,1763242252600,-151.0,0.00036986,31]
[394067026,1763242252609,-158.497261,0.00036986,31]
[394067027,1763242252619,-151.0,0.00036986,15]
[394067028,1763242252817,-151.0,0.00036986,31]
[394067029,1763242252829,-151.0,0.00036986,15]
[394067030,1763242252838,-151.0,0.00036986,31]
[394067031,1763242252848,-281.536149,0.00036986,31]
[394067032,1763242252858,-151.0,0.00036986,31]
[394067033,1763242252867,-240.97154,0.00036986,31]
[394067034,1763242252877,-151.0,0.00036986,31]
[394067035,1763242252888,-151.0,0.00036986,31]
[394067036,1763242252897,-151.0,0.00036986,31]
[394067037,1763242252906,-151.0,0.00036986,31]
[394067038,1763242252915,-151.0,0.00036986,31]
[394067039,1763242252926,-151.0,0.00036986,31]
[394067040,1763242252935,-152.564607,0.00036986,31]
[394067041,1763242252944,-151.0,0.00036986,31]
[394067042,1763242252953,-151.0,0.00036986,31]
[394067043,1763242252962,-500.0,0.00036986,15]
[394067044,1763242252971,-500.0,0.00036986,15]
[394067045,1763242252980,-500.0,0.00036986,15]
[394067046,1763242252990,-500.0,0.00036986,15]
[394067047,1763242252999,-500.0,0.00036986,15]
[394067048,1763242253008,-500.0,0.00036986,15]
[394067049,1763242253018,-500.0,0.00036986,15]
[394067050,1763242253027,-500.0,0.00036986,15]
[394067051,1763242253036,-500.0,0.00036986,15]
[394067052,1763242253045,-500.0,0.00036986,15]
[394067053,1763242253055,-500.0,0.00036986,15]
[394067054,1763242253064,-617.79397618,0.00036986,15]
[394067055,1763242253073,-215.10664739,0.00037059,2]
[394067056,1763242253083,-623.34,0.000371,14]
[394067057,1763242253092,-430.14,0.00037151,2]
[394067058,1763242253101,-151.0,0.0003718,31]
[394067059,1763242253110,-151.0,0.0003718,31]
[394067060,1763242253119,-151.0,0.0003718,31]
[394067061,1763242253127,-151.0,0.0003718,31]
[394067062,1763242253137,-254.784256,0.0003718,31]
[394067063,1763242253146,-312.120822,0.0003718,31]
[394067064,1763242253155,-312.120822,0.0003718,31]
[394067065,1763242253164,-312.120822,0.0003718,31]
[394067066,1763242253173,-312.120822,0.0003718,31]
[394067067,1763242253183,-151.0,0.0003718,31]
[394067068,1763242253192,-440.834705,0.0003718,31]
[394067069,1763242253202,-440.834705,0.0003718,31]
[394067070,1763242253211,-440.834705,0.0003718,31]
[394067071,1763242253220,-151.0,0.0003718,31]
[394067072,1763242253229,-440.834705,0.0003718,31]
[394067073,1763242253239,-151.0,0.0003718,31]
[394067074,1763242253248,-151.0,0.0003718,31]
[394067075,1763242253257,-151.0,0.0003718,31]
[394067076,1763242253266,-531.075131,0.0003718,31]
[394067077,1763242253276,-531.075131,0.0003718,31]
[394067078,1763242253285,-531.075131,0.0003718,31]
[394067079,1763242253294,-531.075131,0.0003718,31]
[394067080,1763242253303,-151.0,0.0003718,31]
[394067081,1763242253312,-151.0,0.0003718,31]
[394067082,1763242253322,-151.0,0.00037397,31]
[394067083,1763242253331,-237.202326,0.00037397,31]
[394067084,1763242253340,-151.0,0.00037397,31]
[394067085,1763242253349,-235.050797,0.00037397,31]
[394067086,1763242253358,-151.0,0.00037397,31]
[394067087,1763242253367,-151.0,0.00037397,31]
[394067088,1763242253376,-235.050797,0.00037397,31]
[394067089,1763242253385,-151.0,0.00037397,31]
[394067090,1763242253395,-235.050797,0.00037397,31]
[394067091,1763242253404,-151.0,0.00037397,31]
[394067092,1763242253414,-235.050797,0.00037397,31]
[394067093,1763242253423,-163.018163,0.00037397,31]
[394067094,1763242253432,-151.0,0.00037397,31]
[394067095,1763242253441,-157.894586,0.00037397,31]
[394067096,1763242253451,-151.0,0.00037397,31]
[394067097,1763242253460,-151.0,0.00037397,31]
[394067098,1763242253469,-215.10664739,0.00037397,2]
[394067099,1763242253478,-531.0,0.00037397,30]
[394067100,1763242253487,-167.01,0.000374,14]
[394067101,1763242253497,-430.14,0.00037417,2]
[394067102,1763242253506,-151.0,0.00037438,31]
[394067103,1763242253515,-151.0,0.00037438,31]
[394067104,1763242253525,-151.0,0.00037438,31]
[394067105,1763242253534,-279.44151,0.00037438,31]
[394067106,1763242253544,-213.876581,0.00037438,31]
[394067107,1763242253553,-213.876581,0.00037438,31]
[394067108,1763242253562,-213.876581,0.00037438,31]
[394067109,1763242253572,-158.633299,0.00037438,31]
[394067110,1763242253581,-213.876581,0.00037438,31]
[394067111,1763242253590,-155.598101,0.00037438,31]
[394067112,1763242253600,-151.0,0.00037438,31]
[394067113,1763242253610,-208.097923,0.00037438,31]
[394067114,1763242253619,-151.0,0.00037438,31]
[394067115,1763242253628,-1190.0,0.00037438,2]
[394067116,1763242253637,-907.0,0.00037438,2]
[394067117,1763242253647,-608.0,0.00037438,2]
[394067118,1763242253656,-150.0,0.00037449,30]
[394067119,1763242253666,-515.22473767,0.00037456,30]
[394067120,1763242253675,-26177.0,0.00037608,2]
[394067121,1763242253685,-215.10664739,0.00037682,2]
[394067122,1763242253694,-151.0,0.00037728,31]
[394067123,1763242253703,-154.696196,0.00037728,31]
[394067124,1763242253712,-160.395793,0.00037728,31]
[394067125,1763242253722,-151.0,0.00037728,31]
[394067126,1763242253731,-151.0,0.00037728,31]
[394067127,1763242253741,-152.806514,0.00037728,31]
[394067128,1763242253751,-151.0,0.00037728,31]
[394067129,1763242253761,-155.883635,0.00037728,31]
[394067130,1763242253770,-151.0,0.00037728,31]
[394067131,1763242253779,-151.0,0.00037728,31]
[394067132,1763242253789,-1258.995056,0.00037728,31]
[394067133,1763242253798,-1258.995056,0.00037728,31]
[394067134,1763242253808,-1258.995056,0.00037728,31]
[394067135,1763242253822,-1258.995056,0.00037728,31]
[394067136,1763242253831,-153.153507,0.00037728,31]
[394067137,1763242253841,-151.0,0.00037728,31]
[394067138,1763242253850,-311.1,0.00037898,60]
[394067139,1763242253862,-215.10664739,0.00038048,2]